bitfinex/quotes_ETHUSD_20241204
["timestamp","ask_amount","ask_price","bid_price","bid_amount"]
[1733315201193,0.55,3718.0,3717.6,2.68987]
[1733315201485,0.55,3718.0,3717.7,2.6898]
[1733315201654,0.55,3717.8,3717.4,2.69]
[1733315202049,0.55,3717.8,3717.5,2.68997]
[1733315202490,0.55,3717.6,3717.3,2.6901]
[1733315202632,0.55,3717.6,3717.1,2.6902]
[1733315202836,3.52231244,3718.0,3716.7,3.71459]
[1733315202837,0.55,3717.9,3717.2,2.69019]
[1733315203134,0.55,3717.9,3717.1,2.69026]
[1733315203653,0.55,3717.9,3717.0,2.69029]
[1733315204045,0.55,3717.7,3717.0,2.69029]
[1733315204289,0.55,3717.7,3717.4,2.69003]
[1733315204589,0.55,3717.7,3717.0,2.69034]
[1733315204754,8.7413,3717.8,3717.7,2.68983]
[1733315204954,8.7413,3717.8,3716.7,1.56860808]
[1733315205286,8.7413,3717.8,3717.0,2.69034]
[1733315205479,8.7413,3717.8,3717.7,2.68983]
[1733315206048,9.2913,3717.8,3717.7,2.68983]
[1733315207190,3.48868596,3718.5,3717.8,2.68976]
[1733315207191,0.55,3718.0,3717.8,2.68976]
[1733315207485,0.55,3718.0,3717.7,2.68979]
[1733315207887,0.55,3718.0,3717.0,2.69034]
[1733315208096,0.55,3718.0,3717.8,2.68975]
[1733315208299,0.55,3718.0,3717.9,2.68969]
[1733315209451,8.7413,3718.8,3717.9,2.68969]
[1733315209654,8.48868596,3719.0,3717.2,2.69013]
[1733315209655,1.5788,3718.6,3718.2,2.68943]
[1733315209865,1.5788,3718.6,3717.4,1.0241]
[1733315209866,1.5788,3718.6,3718.3,2.68939]
[1733315210272,0.03361804,3718.5,3718.2,2.6894]
[1733315210569,1.5788,3718.6,3718.2,2.6894]
[1733315210728,0.03361849,3718.5,3718.2,2.6894]
[1733315210885,0.55,3718.4,3718.2,2.6894]
[1733315211225,0.55,3718.5,3718.3,2.6894]
[1733315211381,0.55,3718.5,3717.6,0.54131]
[1733315211577,11.91014313,3718.9,3718.6,2.68915]
[1733315211825,11.91014313,3718.9,3718.5,2.68924]
[1733315212025,11.91014313,3718.9,3717.7,2.68983]
[1733315212026,0.0336151,3718.8,3718.0,2.68955]
[1733315212231,11.91014313,3718.9,3718.6,2.68917]
[1733315212523,11.91014313,3718.9,3718.3,2.68938]
[1733315212524,0.03361511,3718.8,3718.3,2.68938]
[1733315212735,0.03361511,3718.8,3718.1,2.68952]
[1733315213031,0.55,3718.7,3717.6,0.54131]
[1733315213195,9.2913,3718.0,3717.0,2.69034]
[1733315213398,0.55,3718.0,3717.0,3.0]
[1733315213728,0.55,3718.2,3718.1,2.68954]
[1733315213892,0.55,3718.4,3717.5,3.0]
[1733315214230,0.55,3718.4,3718.3,2.6894]
[1733315214982,0.55,3718.4,3718.2,2.68947]
[1733315215186,0.55,3718.4,3718.3,2.6894]
[1733315216179,3.6152,3719.0,3717.8,1.0241]
[1733315216180,2.0,3719.0,3718.9,2.68896]
[1733315217788,2.55,3719.0,3718.9,2.68896]
[1733315218541,2.0,3719.0,3718.9,2.68896]
[1733315219449,0.36652054,3719.0,3718.9,4.40695537]
[1733315219747,1.37486703,3721.1,3719.1,5.68882]
[1733315219748,4.54e-06,3719.2,3719.1,5.68882]
[1733315220501,4.54e-06,3719.2,3719.1,2.68882]
[1733315220720,4.54e-06,3719.2,3718.7,3.2258337]
[1733315220721,4.72574767,3719.2,3718.1,1.0241]
[1733315220922,3.16884313,3718.8,3718.0,2.6896]
[1733315221152,0.58361636,3718.7,3718.0,2.68957]
[1733315221300,0.58361636,3718.7,3718.1,2.68954]
[1733315221694,0.58361636,3718.7,3717.9,2.68967]
[1733315221902,0.55,3718.5,3717.6,2.6899]
[1733315222203,0.55,3718.3,3718.0,2.68955]
[1733315222403,0.55,3718.4,3718.0,2.68955]
[1733315222633,0.55,3718.4,3718.1,2.68949]
[1733315223123,0.58361888,3718.4,3717.6,0.53861509]
[1733315223450,0.55,3718.4,3718.3,2.6894]
[1733315223799,0.55,3718.4,3717.6,0.53861509]
[1733315224043,8.7413,3718.1,3716.9,1.0241]
[1733315224248,1.664,3717.8,3717.2,2.69017]
[1733315224443,0.55,3717.7,3717.3,2.69011]
[1733315224654,0.55,3717.7,3717.4,2.69004]
[1733315224845,0.55,3717.7,3716.9,1.0241]
[1733315225052,0.55,3717.9,3717.7,2.68979]
[1733315225353,0.55,3717.9,3717.5,2.68996]
[1733315225535,0.55,3717.9,3717.0,2.69028]
[1733315225737,0.58362351,3717.9,3717.2,2.69013]
[1733315225938,3.75246664,3717.9,3717.4,0.53452571]
[1733315226104,0.55,3717.9,3717.4,0.51245363]
[1733315226506,0.55,3717.9,3717.5,2.68995]
[1733315226819,0.55,3717.9,3717.4,0.51245363]
[1733315227019,0.55,3717.9,3717.4,1.85680999]
[1733315227353,0.55,3717.9,3717.6,2.68987]
[1733315227863,0.55,3717.9,3716.9,1.0241]
[1733315228011,0.55,3718.1,3717.7,2.68983]
[1733315228346,0.55,3718.1,3717.5,2.68996]
[1733315228699,0.55,3718.1,3717.3,0.54189922]
[1733315229049,0.583624,3718.1,3717.0,2.69029]
[1733315229249,0.55,3717.8,3717.1,2.69026]
[1733315229909,1.6424,3717.7,3716.9,3.21947913]
[1733315230108,0.55,3717.6,3716.9,0.52908913]
[1733315230314,0.55,3717.4,3716.8,2.69043]
[1733315230547,0.55,3717.2,3716.8,2.69043]
[1733315230866,0.55,3717.3,3716.9,2.69041]
[1733315231013,0.55,3717.3,3716.5,3.2160891]
[1733315231014,9.2913,3717.5,3716.7,2.69055]
[1733315231351,9.2913,3717.5,3717.2,2.69019]
[1733315231651,9.2913,3717.5,3716.9,2.69041]
[1733315231866,0.55,3717.3,3716.6,2.69056]
[1733315232152,0.03362869,3717.4,3716.1,2.69094]
[1733315232153,8.7413,3716.8,3716.1,2.69099]
[1733315232311,0.55,3716.7,3716.0,0.54039215]
[1733315232509,0.55,3716.7,3716.4,2.69073]
[1733315232726,0.55,3716.7,3716.0,3.23144215]
[1733315233206,0.55,3716.5,3716.0,0.54039215]
[1733315233332,0.55,3716.2,3716.0,0.54039215]
[1733315233538,0.55,3716.2,3715.9,2.69109]
[1733315233862,9.2913,3716.2,3715.5,2.69139]
[1733315234046,0.55,3716.0,3715.2,0.5287368]
[1733315234558,0.55,3715.8,3715.3,2.69157]
[1733315234766,0.55,3716.0,3715.6,2.69128]
[1733315235262,0.55,3716.0,3715.4,2.69148]
[1733315235573,0.55,3716.0,3715.5,2.69142]
[1733315235774,0.55,3716.0,3715.6,2.69133]
[1733315236066,11.2913,3716.0,3715.2,0.5287368]
[1733315236271,11.2913,3716.0,3715.7,2.69125]
[1733315236435,11.2913,3716.0,3715.5,2.69141]
[1733315236773,11.2913,3716.0,3715.4,2.69149]
[1733315237177,0.55,3715.8,3715.2,3.2203568]
[1733315237354,0.55,3715.4,3714.7,3.46695902]
[1733315237673,0.55,3715.4,3714.7,0.46695902]
[1733315237877,8.7413,3715.5,3713.9,1.0241]
[1733315237878,1.6503,3715.2,3713.9,3.71668]
[1733315238171,1.6503,3715.2,3710.5,14.34]
[1733315238172,0.03365257,3715.1,3714.1,2.69243]
[1733315238338,0.03365257,3715.1,3713.1,2.69316]
[1733315238339,1.6013,3714.6,3713.1,2.69316]
[1733315238539,1.6013,3714.6,3713.9,2.69255]
[1733315238540,0.55,3714.5,3713.9,2.69255]
[1733315238739,9.2913,3714.3,3713.0,1.0241]
[1733315238937,8.7413,3714.5,3714.2,2.69236]
[1733315239226,8.7413,3714.5,3714.4,2.69222]
[1733315239536,1.5981,3715.0,3714.9,2.69186]
[1733315239755,8.7413,3715.4,3714.4,2.69222]
[1733315239922,8.7413,3715.8,3715.4,2.6915]
[1733315240128,2.0,3716.0,3715.7,2.69127]
[1733315240526,2.0,3716.0,3715.0,3.0]
[1733315240778,2.0,3716.0,3715.9,2.69113]
[1733315242200,2.55,3716.0,3715.9,2.69113]
[1733315244081,0.55,3715.9,3715.8,2.69121]
[1733315245043,0.55,3715.9,3715.5,2.69138]
[1733315245372,0.55,3715.9,3715.1,0.62397946]
[1733315245373,9.2913,3715.7,3715.1,2.69166]
[1733315245580,9.2913,3715.7,3714.7,1.0241]
[1733315245731,9.2913,3715.7,3715.2,2.69161]
[1733315246357,0.55,3715.5,3714.3,3.71634]
[1733315246673,0.55,3715.5,3715.0,2.69176]
[1733315247372,0.55,3715.5,3714.3,1.0241]
[1733315247373,9.2913,3715.5,3715.2,2.69164]
[1733315247575,9.2913,3715.5,3714.6,0.52861585]
[1733315247734,9.2913,3715.5,3715.1,2.69166]
[1733315247931,9.2913,3715.5,3714.7,2.692]
[1733315248280,9.2913,3715.5,3715.2,2.69163]
[1733315248634,9.2913,3715.5,3714.9,2.69185]
[1733315248835,2.1192,3715.3,3714.6,3.22067585]
[1733315249030,9.2913,3715.1,3714.6,0.52861585]
[1733315249235,0.55,3714.9,3714.6,0.52861585]
[1733315249466,0.55,3714.7,3714.6,0.52861585]
[1733315249627,0.55,3714.7,3714.2,2.69236]
[1733315249956,2.2119,3714.5,3714.2,2.69236]
[1733315250473,2.2119,3714.5,3713.3,1.0241]
[1733315250657,2.2119,3714.5,3714.4,2.69222]
[1733315250872,2.2119,3714.5,3714.2,2.69235]
[1733315251272,2.2119,3714.5,3713.7,3.52920823]
[1733315251588,0.55,3714.3,3713.7,0.52920823]
[1733315251880,0.55,3714.1,3713.6,2.69274]
[1733315252038,0.55,3713.9,3713.6,2.69274]
[1733315252245,0.55,3713.9,3713.7,2.69269]
[1733315252436,0.55,3713.8,3713.6,0.54627946]
[1733315252638,0.55,3714.2,3713.6,0.54627946]
[1733315253290,0.55,3714.2,3714.0,2.69245]
[1733315253498,0.55,3714.2,3713.6,0.54627946]
[1733315253656,0.55,3714.2,3713.8,2.69262]
[1733315253857,0.55,3714.2,3713.6,0.54627946]
[1733315254473,0.55,3714.2,3713.6,3.23906946]
[1733315254680,10.248,3714.1,3713.1,3.0]
[1733315254891,0.55,3713.9,3713.1,2.69309]
[1733315255051,8.7413,3713.6,3713.0,3.21932036]
[1733315255250,0.55,3713.4,3713.0,3.21932036]
[1733315255485,0.0336656,3713.5,3713.0,2.69323]
[1733315255486,0.55,3713.2,3713.0,2.69323]
[1733315256282,0.55,3713.4,3713.1,2.69316]
[1733315256693,0.55,3713.4,3713.2,2.69304]
[1733315256846,0.55,3713.4,3713.3,2.69302]
[1733315257848,9.2913,3713.2,3711.9,1.0241]
[1733315258064,1.5306,3713.3,3710.9,3.0]
[1733315258065,8.7413,3712.9,3711.5,3.7184]
[1733315258393,8.7413,3712.9,3712.5,2.69359]
[1733315258394,0.55,3712.8,3712.5,2.69359]
[1733315258543,0.55,3712.8,3711.5,1.0241]
[1733315258746,1.6007,3712.5,3712.3,0.54613189]
[1733315258948,0.55,3712.4,3712.3,0.54613189]
[1733315259389,0.55,3712.4,3712.2,2.69381]
[1733315259719,0.55,3712.4,3711.6,2.69425]
[1733315259994,0.55,3712.4,3712.3,2.69374]
[1733315260348,8.7413,3712.5,3712.4,2.69367]
[1733315262291,8.7413,3712.5,3712.4,5.69367]
[1733315263286,2.0729,3713.3,3713.2,2.69309]
[1733315264089,0.55,3713.3,3713.2,2.69309]
[1733315264298,9.2913,3713.2,3712.4,3.0]
[1733315264604,9.2913,3713.2,3711.2,0.1]
[1733315264605,1.5189,3712.7,3711.7,3.335427]
[1733315264809,8.7413,3712.7,3712.6,2.69353]
[1733315265574,0.63995632,3714.9,3712.3,2.69369]
[1733315265575,0.55,3713.4,3712.3,2.69369]
[1733315265776,8.7413,3713.3,3712.8,3.0]
[1733315266097,9.2913,3713.3,3713.2,2.69309]
[1733315267415,8.7413,3713.3,3713.2,2.69309]
[1733315267573,3.0,3714.9,3713.8,2.69265]
[1733315267574,1.5189,3714.7,3713.8,2.69265]
[1733315268092,1.5189,3714.7,3714.6,2.69207]
[1733315268420,1.5189,3714.7,3713.8,1.0241]
[1733315268604,1.5189,3714.7,3714.6,2.69207]
[1733315269288,2.0689,3714.7,3714.6,2.69207]
[1733315269490,1.5189,3715.0,3714.9,2.69186]
[1733315270173,10.3589,3715.0,3714.4,3.0]
[1733315270517,10.3589,3715.0,3714.8,2.69193]
[1733315270835,10.3589,3715.0,3714.4,3.0]
[1733315270836,10.9089,3715.0,3714.9,2.69186]
[1733315271706,8.84,3715.5,3715.4,2.6915]
[1733315272784,9.39,3715.5,3715.4,2.6915]
[1733315274651,8.84,3715.5,3715.4,2.6915]
[1733315275926,9.39,3715.5,3715.4,2.6915]
[1733315276222,0.55,3715.4,3715.2,2.69162]
[1733315276429,0.55,3715.6,3715.2,2.69162]
[1733315276624,0.55,3715.4,3715.2,2.69162]
[1733315276782,0.55,3715.4,3714.7,3.52708132]
[1733315276986,0.55,3715.2,3714.7,3.0]
[1733315277298,1.639,3715.1,3715.0,2.69179]
[1733315278282,1.639,3715.1,3714.7,2.69193]
[1733315279029,0.03364816,3715.0,3714.7,2.69193]
[1733315279181,0.03364816,3715.0,3714.3,3.0]
[1733315279384,0.03364816,3715.0,3714.6,2.692]
[1733315279630,0.55,3714.9,3714.2,3.53720988]
[1733315279839,0.03365259,3714.8,3714.2,0.53720988]
[1733315280024,8.84,3714.9,3714.8,2.69193]
[1733315280333,8.84,3714.9,3714.8,6.71603]
[1733315280831,8.84,3714.9,3714.8,5.69193]
[1733315281409,8.84,3714.9,3714.8,6.71603]
[1733315283428,8.84,3714.9,3714.8,5.69193]
[1733315284629,8.84,3714.9,3714.8,6.41344379]
[1733315285131,8.84,3714.9,3714.8,7.43754379]
[1733315285331,8.84,3715.9,3715.5,2.69137]
[1733315285622,1.5584,3715.7,3714.7,0.54943633]
[1733315285834,1.5584,3715.3,3714.3,2.69227]
[1733315285982,0.55,3715.1,3714.3,2.69229]
[1733315286181,0.55,3714.9,3713.9,0.52765659]
[1733315286415,4.24998,3715.3,3713.9,0.52765659]
[1733315286416,0.55,3714.4,3714.1,2.69241]
[1733315286609,0.55,3714.4,3713.9,0.52765659]
[1733315286831,9.39,3714.4,3713.6,1.0241]
[1733315287033,0.55,3714.2,3713.4,2.69289]
[1733315287201,0.55,3714.0,3713.3,0.53745893]
[1733315287388,0.55,3714.0,3713.8,2.69258]
[1733315287584,0.55,3714.3,3713.8,2.69258]
[1733315288044,9.39,3714.1,3713.5,2.69281]
[1733315288332,0.55,3713.9,3713.5,2.69284]
[1733315288515,9.39,3714.1,3713.6,2.69278]
[1733315288687,0.55,3713.7,3713.3,0.53745893]
[1733315289044,0.55,3713.5,3713.4,2.69292]
[1733315289327,0.55,3713.7,3713.5,2.69286]
[1733315289516,0.55,3713.7,3713.3,3.23044893]
[1733315289714,0.55,3713.7,3713.3,0.53745893]
[1733315289922,0.55,3713.5,3713.3,0.53745893]
[1733315290293,9.39,3713.5,3713.3,0.53745893]
[1733315290930,9.39,3713.5,3712.5,2.69353]
[1733315290931,0.55,3713.3,3712.6,2.69353]
[1733315291088,0.55,3713.3,3712.5,2.69353]
[1733315291488,0.55,3713.3,3712.9,2.69325]
[1733315291794,3.0,3714.4,3712.9,0.53626799]
[1733315291795,2.0635,3713.0,3712.9,0.53626799]
[1733315291994,0.55,3712.9,3712.3,2.69368]
[1733315292223,0.55,3712.7,3712.3,2.69368]
[1733315292436,10.3535,3713.0,3712.3,2.69368]
[1733315292437,0.55,3712.5,3712.3,2.69368]
[1733315292642,0.55,3712.5,3712.4,2.69367]
[1733315294250,3.3761997,3714.4,3712.4,2.69367]
[1733315294251,10.4809,3713.8,3712.7,1.0241]
[1733315294451,1.6409,3713.8,3713.3,2.69296]
[1733315294594,8.84,3713.7,3713.3,2.69296]
[1733315294795,8.84,3713.7,3712.7,1.0241]
[1733315295212,8.84,3713.7,3712.7,3.7175]
[1733315295620,0.55,3713.6,3713.0,2.69317]
[1733315296144,0.55,3713.4,3712.6,3.0]
[1733315296344,0.55,3713.2,3712.7,2.69341]
[1733315296495,0.55,3713.0,3712.7,2.69341]
[1733315296696,0.58366795,3713.2,3712.7,2.69341]
[1733315296997,0.58366795,3713.2,3712.5,2.69358]
[1733315297541,0.58366795,3713.2,3711.9,0.5419254]
[1733315297897,0.58366795,3713.2,3712.3,2.69374]
[1733315298234,0.58366795,3713.2,3711.9,0.5419254]
[1733315298442,0.55,3713.0,3711.9,0.5419254]
[1733315299045,10.3636,3713.5,3713.0,2.69323]
[1733315299341,10.3636,3713.5,3712.5,1.0241]
[1733315299342,10.3636,3713.5,3713.1,2.69313]
[1733315299635,8.84,3713.4,3713.2,2.69307]
[1733315300025,8.84,3713.4,3712.5,1.0241]
[1733315300229,0.03366648,3713.3,3712.5,3.54200439]
[1733315300427,3.17578306,3713.1,3712.5,0.54200439]
[1733315300593,3.17578306,3713.1,3712.3,2.69374]
[1733315300799,0.55,3712.9,3712.3,2.69374]
[1733315301126,0.55,3712.7,3711.8,2.69406]
[1733315301308,0.55,3712.9,3712.4,2.6936]
[1733315301510,0.55,3712.9,3711.8,0.371816]
[1733315301511,0.55,3712.9,3711.8,0.89749074]
[1733315301824,0.55,3712.9,3712.7,2.69345]
[1733315302029,8.84,3713.6,3713.2,2.69308]
[1733315302334,8.84,3713.6,3712.4,5.38734]
[1733315302539,8.84,3713.6,3713.2,2.69304]
[1733315302749,8.84,3713.6,3713.3,2.69297]
[1733315302961,1.6038,3714.9,3714.0,2.69247]
[1733315303094,1.6038,3714.9,3713.3,0.269297]
[1733315303095,8.84,3714.8,3713.9,2.69253]
[1733315305114,0.55,3714.6,3714.0,2.6925]
[1733315305314,0.55,3714.4,3714.0,2.6925]
[1733315305654,0.55,3714.7,3714.1,2.69242]
[1733315305860,0.55,3714.7,3713.5,1.0241]
[1733315306081,0.55,3714.7,3713.8,2.6926]
[1733315306218,0.55,3714.7,3713.6,2.6928]
[1733315306551,0.55,3714.5,3714.0,2.69249]
[1733315306773,0.55,3714.3,3713.2,1.56429673]
[1733315306916,0.55,3714.3,3713.2,1.7207264]
[1733315307113,0.55,3714.1,3713.2,1.7207264]
[1733315307340,9.39,3714.1,3714.0,2.69251]
[1733315308738,0.55,3714.2,3713.3,2.69296]
[1733315308940,0.55,3714.0,3713.2,1.7207264]
[1733315309151,0.55,3713.9,3713.8,2.69264]
[1733315309645,9.39,3714.2,3714.0,2.69249]
[1733315310485,0.55,3714.0,3713.9,2.69258]
[1733315311797,8.84,3714.1,3713.9,2.69258]
[1733315311999,1.6221,3715.3,3714.0,2.961768]
[1733315312270,1.65575463,3715.3,3714.0,2.69251]
[1733315312470,1.65575463,3715.3,3714.2,2.6923]
[1733315312700,1.65575463,3715.3,3714.2,2.69235]
[1733315312906,1.65575463,3715.3,3714.3,2.69223]
[1733315313111,0.55,3715.2,3714.3,2.69223]
[1733315313308,0.55,3715.0,3714.3,2.69223]
[1733315313614,0.55,3714.8,3713.9,2.69254]
[1733315313908,1.6221,3715.3,3714.3,2.69225]
[1733315313909,9.39,3714.6,3714.3,2.69225]
[1733315314518,0.55,3714.4,3714.3,2.69225]
[1733315316290,8.84,3715.3,3715.2,2.69164]
[1733315316503,1.5548,3715.4,3714.5,3.0]
[1733315316668,10.3948,3715.8,3714.7,4.0241]
[1733315316872,0.03364566,3715.7,3714.7,4.0241]
[1733315317110,0.03364566,3715.7,3713.7,0.1]
[1733315317111,8.84,3715.6,3714.3,1.0241]
[1733315317272,4.10082122,3715.4,3713.9,1.0241]
[1733315317473,1.5548,3715.1,3713.9,1.0241]
[1733315317696,0.03365437,3715.0,3714.2,2.69235]
[1733315317903,2.57967559,3715.0,3714.0,2.69249]
[1733315318113,8.84,3714.8,3714.0,2.69249]
[1733315318292,0.55,3714.7,3714.0,2.69249]
[1733315319014,0.55,3714.7,3714.6,2.69207]
[1733315319265,8.84,3715.6,3714.7,3.0]
[1733315319520,8.84,3715.6,3715.1,2.69169]
[1733315319867,8.84,3715.6,3714.6,0.269207]
[1733315320343,8.84,3715.6,3715.5,2.69142]
[1733315320624,2.0,3716.0,3715.6,2.69132]
[1733315321682,8.84,3715.9,3715.6,2.69133]
[1733315322533,8.84,3715.9,3714.9,1.5756822]
[1733315322745,8.84,3715.9,3715.8,2.69121]
[1733315323383,2.0,3716.0,3715.9,2.69113]
[1733315324791,2.0,3716.0,3715.9,5.69113]
[1733315324996,2.0,3716.0,3715.9,6.631774]
[1733315326747,1e-05,3716.0,3715.9,6.631774]
[1733315327540,1e-05,3716.0,3715.9,7.655874]
[1733315328118,10.4608,3717.5,3715.9,7.655874]
[1733315328325,8.84,3717.4,3717.2,2.69014]
[1733315329263,0.55,3717.3,3717.0,2.69032]
[1733315329765,0.55,3717.3,3717.1,2.69026]
[1733315330264,0.55,3717.3,3716.9,2.6904]
[1733315331700,0.55,3717.3,3716.8,2.69048]
[1733315331988,0.55,3717.3,3716.9,2.69041]
[1733315332323,0.55,3717.3,3716.0,3.0]
[1733315332324,0.55,3717.3,3717.0,2.69033]
[1733315332683,0.55,3717.3,3717.1,2.69023]
[1733315332874,0.55,3717.3,3716.9,2.69039]
[1733315333086,0.55,3717.3,3716.8,2.69046]
[1733315333392,0.55,3717.1,3716.8,2.69046]
[1733315333753,0.55,3717.3,3716.8,2.69046]
[1733315334079,0.55,3717.3,3715.5,2.69139]
[1733315334080,0.55,3717.1,3715.9,1.964744]
[1733315334288,0.55,3717.1,3715.6,3.0]
[1733315334289,1.5886,3716.8,3716.1,0.52531418]
[1733315334584,0.58363626,3716.7,3716.2,2.69091]
[1733315334885,0.55,3716.7,3716.2,2.69091]
[1733315335102,0.55,3716.5,3716.2,2.69091]
[1733315335277,0.55,3716.5,3715.6,1.0241]
[1733315335443,0.55,3716.5,3715.7,0.40241]
[1733315335444,0.55,3716.3,3715.7,0.40241]
[1733315335647,0.55,3716.1,3715.2,1.0241]
[1733315335850,0.55,3716.1,3715.5,2.69138]
[1733315336090,0.55,3716.1,3715.8,3.22995273]
[1733315336344,0.55,3716.1,3715.8,0.53877273]
[1733315336459,0.55,3715.9,3715.6,2.69129]
[1733315336648,0.55,3716.2,3715.6,2.69129]
[1733315336848,0.55,3716.2,3715.7,2.69121]
[1733315337267,0.55,3716.2,3715.8,2.6912]
[1733315337511,0.55,3716.2,3715.7,2.69125]
[1733315338203,0.55,3716.2,3715.8,2.6912]
[1733315338380,0.55,3716.2,3715.6,0.54953957]
[1733315338587,0.55,3716.2,3716.0,2.69104]
[1733315338803,0.55,3716.2,3715.8,2.6912]
[1733315339162,0.55,3716.2,3715.6,3.59578353]
[1733315339594,0.55,3716.2,3715.6,0.54953957]
[1733315339820,0.55,3716.0,3715.6,0.54953957]
[1733315340111,0.55,3715.8,3715.3,2.69157]
[1733315340416,0.55,3715.6,3715.5,0.53941874]
[1733315341218,0.55,3715.6,3715.0,2.69178]
[1733315341524,0.55,3715.6,3715.1,2.69171]
[1733315341677,0.55,3715.6,3714.2,1.0241]
[1733315341889,0.55,3715.6,3713.2,0.25642967]
[1733315341890,9.39,3715.4,3713.9,1.0241]
[1733315342078,9.39,3715.4,3715.0,0.54908275]
[1733315342571,9.39,3715.4,3714.4,2.69222]
[1733315342766,1.5568,3715.1,3714.1,2.69238]
[1733315342975,8.84,3714.9,3714.1,2.69238]
[1733315343269,0.5836536,3715.0,3713.4,2.6929]
[1733315343270,0.55,3714.5,3713.4,2.6929]
[1733315343484,0.55,3714.3,3713.7,0.54531305]
[1733315343683,0.55,3714.3,3713.9,2.69251]
[1733315343931,0.55,3714.5,3713.9,2.69251]
[1733315344083,0.55,3714.3,3713.9,2.69251]
[1733315344291,0.55,3714.1,3713.4,2.6929]
[1733315344609,0.55,3713.9,3713.5,0.52694926]
[1733315344919,0.55,3713.7,3713.4,2.6929]
[1733315345273,0.58366093,3713.8,3712.9,2.69327]
[1733315345469,0.58366093,3713.8,3713.0,0.371737]
[1733315345785,0.55,3713.8,3713.0,3.064927]
[1733315346101,0.55,3713.6,3713.4,2.69294]
[1733315346420,0.55,3713.8,3713.4,2.69294]
[1733315346650,0.58366094,3713.8,3713.1,0.52824173]
[1733315346862,0.58366094,3713.8,3713.3,2.693]
[1733315347530,0.55,3713.8,3713.4,2.69294]
[1733315347730,0.55,3713.8,3713.1,0.52824173]
[1733315348134,0.55,3713.3,3712.8,2.69337]
[1733315348337,0.55,3713.1,3712.8,2.69337]
[1733315348647,0.55,3712.9,3712.6,3.2377758]
[1733315348971,0.55,3712.7,3712.6,0.5442558]
[1733315349323,0.03366913,3713.1,3712.6,0.5442558]
[1733315349324,0.55,3713.0,3712.6,0.5442558]
[1733315349697,0.55,3712.8,3712.6,0.5442558]
[1733315349953,1.5786,3712.7,3712.6,0.5442558]
[1733315350275,0.55,3712.6,3712.0,0.54727345]
[1733315350753,0.55,3712.6,3712.0,3.24116345]
[1733315350965,0.55,3712.4,3712.0,0.54727345]
[1733315351636,0.55,3712.4,3712.3,2.69374]
[1733315351818,8.84,3713.0,3712.0,1.57137345]
[1733315352017,0.55,3712.9,3712.7,2.69342]
[1733315352230,0.55,3712.9,3712.6,2.69348]
[1733315352477,0.55,3712.9,3712.0,1.0241]
[1733315352929,0.55,3712.9,3712.8,2.69338]
[1733315353871,0.55,3712.9,3712.1,0.371806]
[1733315353872,0.55,3712.9,3712.6,0.54139851]
[1733315354112,0.58366828,3712.9,3712.5,2.69359]
[1733315354443,0.58366828,3712.9,3712.0,3.0]
[1733315354645,0.58366828,3712.9,3712.3,2.69367]
[1733315354856,1.5755,3712.8,3712.2,2.6938]
[1733315355175,0.55,3712.6,3712.2,2.6938]
[1733315355478,0.55,3712.5,3712.0,2.69396]
[1733315355776,0.55,3712.5,3711.7,3.0]
[1733315355926,0.55,3712.5,3712.4,2.69367]
[1733315357431,0.55,3712.6,3711.9,2.69396]
[1733315357691,0.55,3712.4,3711.9,3.0]
[1733315357988,0.55,3712.4,3712.0,2.69394]
[1733315358188,0.55,3712.2,3712.0,2.69394]
[1733315358480,0.55,3712.2,3711.9,2.69402]
[1733315358688,0.03367557,3712.1,3711.8,0.55045326]
[1733315358830,0.03367557,3712.1,3711.8,3.24452326]
[1733315359189,0.55,3712.2,3712.1,2.69389]
[1733315359531,0.55,3712.4,3711.8,0.55045326]
[1733315360227,9.39,3712.4,3712.0,2.69395]
[1733315360428,9.39,3712.4,3711.8,3.24453326]
[1733315360632,0.55,3712.2,3711.8,3.24453326]
[1733315360853,0.55,3712.0,3711.8,0.55045326]
[1733315361090,0.55,3712.1,3711.8,0.55045326]
[1733315361303,8.84,3712.0,3711.8,0.55045326]
[1733315361496,2.20568096,3711.9,3711.8,0.55045326]
[1733315361795,13.73971096,3711.9,3711.8,0.55045326]
[1733315361933,13.70603,3711.9,3711.8,0.55045326]
[1733315362336,0.55,3711.5,3709.9,2.69543]
[1733315362680,8.84,3711.8,3710.1,2.69527]
[1733315362681,8.84,3711.0,3710.1,2.69527]
[1733315362985,1.622,3711.2,3709.5,1.0241]
[1733315362986,8.84,3710.8,3710.3,2.69519]
[1733315363496,0.55,3710.7,3710.2,2.69526]
[1733315364470,0.55,3710.5,3709.6,2.6957]
[1733315364692,1.6258,3710.9,3710.4,2.69512]
[1733315364989,0.55,3710.8,3710.7,2.6949]
[1733315365126,8.84,3711.5,3711.2,2.69452]
[1733315365329,8.84,3711.5,3710.8,2.69483]
[1733315365582,8.84,3711.5,3711.3,2.69444]
[1733315366048,8.84,3711.5,3710.3,6.71923]
[1733315366049,8.84,3711.5,3711.4,2.6944]
[1733315366658,8.84,3711.5,3711.2,2.69453]